fUST/lending_fUST_20250826
["ID","MTS","AMOUNT","RATE_DAILY","PERIOD"]
[381451560,1756213838426,-260.0,0.00032115,2]
[381451561,1756213838436,-551.11,0.00032223,3]
[381451562,1756213838446,-3024.879892,0.00032223,2]
[381451563,1756213838455,-151567.149254,0.00032223,2]
[381451564,1756213838464,-1969.49675512,0.00032223,2]
[381451565,1756213838474,-32749.09317711,0.00032233,2]
[381451581,1756213842817,-90000.0,0.00032233,2]
[381451593,1756213945071,5000.0,0.0002737,2]
[381451594,1756213949392,156.18850234,0.00025205,2]
[381451595,1756213952600,166.392216,0.00013699,2]
[381451596,1756214004289,897.27488818,0.000199,2]
[381451597,1756214004421,897.27488817,0.00021627,2]
[381451598,1756214004537,897.27488817,0.00023353,2]
[381451599,1756214004669,897.27488817,0.0002508,2]
[381451600,1756214004782,897.27488817,0.00026806,6]
[381451601,1756214037562,160.0,0.00027,7]
[381451602,1756214086997,17445.16826,0.00025,3]
[381451603,1756214097970,5000.0,0.0002822,2]
[381451604,1756214100866,748.99917642,0.00025205,2]
[381451605,1756214116029,5000.0,0.0002822,2]
[381451606,1756214132901,5000.0,0.0002822,2]
[381451607,1756214148983,2751.25142572,0.0002822,2]
[381451608,1756214185689,1209.9843053,0.000199,2]
[381451609,1756214185757,1209.98430527,0.00021627,2]
[381451610,1756214185813,1209.98430527,0.00023353,2]
[381451611,1756214185936,1209.98430527,0.0002508,2]
[381451612,1756214191164,1209.98430527,0.00026806,6]
[381451613,1756214201872,1120.0,0.0002822,7]
[381451615,1756214374296,1061.01876834,0.000199,2]
[381451616,1756214374404,1061.01876812,0.00021627,2]
[381451617,1756214374507,1061.01876812,0.00023353,2]
[381451618,1756214374629,1061.01876812,0.0002508,2]
[381451619,1756214374752,1061.01876812,0.00026806,6]
[381451620,1756214473518,10000.0,0.0002822,2]
[381451621,1756214534798,344483.0,0.0003186,60]
[381451622,1756214550924,921.47748235,0.000199,2]
[381451623,1756214551070,921.47748235,0.00021627,2]
[381451624,1756214551196,921.47748235,0.00023353,2]
[381451625,1756214551305,921.47748235,0.0002508,2]
[381451626,1756214551427,921.47748235,0.00026806,6]
[381451627,1756214730624,812.16971245,0.000199,2]
[381451628,1756214730784,812.16971226,0.00021627,2]
[381451629,1756214730882,812.16971226,0.00023353,2]
[381451630,1756214731001,812.16971226,0.0002508,2]
[381451631,1756214731133,812.16971226,0.00026806,6]
[381451632,1756214757819,301.652611,0.00025778,2]
[381451633,1756214758359,271.53558975,0.00026044,2]
[381451634,1756214879703,7359.29539098,0.00018,2]
[381451635,1756214897785,3158.32797917,0.000237,14]
[381451636,1756214907829,808.21374371,0.000199,2]
[381451637,1756214908007,808.21374348,0.00021627,2]
[381451638,1756214908687,808.21374348,0.00023353,2]
[381451639,1756214908855,808.21374348,0.0002508,2]
[381451640,1756214908977,808.21374348,0.00026806,6]
[381451641,1756214915110,163.198862,0.00013699,2]
[381451642,1756214917850,346.75818487,0.00025,2]
[381451643,1756214918011,1150.0,0.0002495,2]
[381451644,1756214919425,6849.496636,0.00017,2]
[381451645,1756214921210,15487.75300641,0.00025,2]
[381451646,1756214921247,1730.46743309,0.000275,4]
[381451647,1756214921333,3624.14131481,0.0002,20]
[381451648,1756214926096,151.0,0.00031859,120]
[381451649,1756214926253,19866.72345272,0.0002,2]
[381451650,1756214928089,151.0,0.00021,2]
[381451651,1756214928974,2941.74005854,0.00023,2]
[381451652,1756214930131,1524.21604025,0.00023,2]
[381451653,1756214930853,7000.0,0.00017,2]
[381451654,1756215031211,3280.01289283,0.0002737,2]
[381451678,1756215032215,-808.21374348,0.00028533,10]
[381451679,1756215032225,-626.27011805,0.0002857,5]
[381451680,1756215032234,-167.34289376,0.0002867,2]
[381451681,1756215032244,-181.87502353,0.0002877,97]
[381451682,1756215032254,-111.95506529,0.00028869,2]
[381451683,1756215032277,-48.04493471,0.00028869,2]
[381451684,1756215032287,-1582.6684932,0.0002887,2]
[381451685,1756215032297,-1000.0,0.0002887,30]
[381451686,1756215032307,-1200.0,0.00028998,2]
[381451687,1756215032317,-845.07960918,0.00029,10]
[381451688,1756215032328,-300.0,0.00029171,2]
[381451689,1756215032338,-300.0,0.00029171,2]
[381451690,1756215032347,-300.0,0.00029171,2]
[381451691,1756215032357,-398.080567,0.00029172,2]
[381451692,1756215032366,-1200.0,0.00029587,2]
[381451693,1756215032376,-500.0,0.00029588,2]
[381451694,1756215032385,-500.0,0.00029588,2]
[381451695,1756215032394,-500.0,0.00029588,2]
[381451697,1756215032407,-500.0,0.00029588,2]
[381451698,1756215032415,-500.0,0.00029588,2]
[381451699,1756215032425,-500.0,0.00029588,2]
[381451700,1756215032435,-500.0,0.00029588,2]
[381451701,1756215032444,-500.0,0.00029588,2]
[381451702,1756215032454,-500.0,0.00029588,2]
[381451703,1756215032464,-500.0,0.00029588,2]
[381451704,1756215032473,-500.0,0.00029588,2]
[381451705,1756215032483,-545.48701589,0.00029588,2]
[381451707,1756215032494,-500.0,0.00029588,2]
[381451708,1756215032503,-374.3062274,0.00029588,2]
[381451710,1756215032514,-500.0,0.00029588,2]
[381451712,1756215032525,-500.0,0.00029588,2]
[381451714,1756215032536,-500.0,0.00029588,2]
[381451715,1756215032546,-500.0,0.00029588,2]
[381451718,1756215032556,-500.0,0.00029588,2]
[381451720,1756215032565,-500.0,0.00029588,2]
[381451721,1756215032575,-500.0,0.00029588,2]
[381451723,1756215032584,-500.0,0.00029588,2]
[381451725,1756215032593,-500.0,0.00029588,2]
[381451727,1756215032603,-500.0,0.00029588,2]
[381451729,1756215032613,-500.0,0.00029588,2]
[381451731,1756215032622,-500.0,0.00029588,2]
[381451733,1756215032632,-500.0,0.00029588,2]
[381451736,1756215032642,-500.0,0.00029588,2]
[381451737,1756215032652,-500.0,0.00029588,2]
[381451740,1756215032661,-500.0,0.00029588,2]
[381451741,1756215032671,-500.0,0.00029588,2]
[381451742,1756215032681,-500.0,0.00029588,2]
[381451743,1756215032691,-500.0,0.00029588,2]
[381451745,1756215032703,-500.0,0.00029588,2]
[381451747,1756215032713,-500.0,0.00029588,2]
[381451749,1756215032722,-500.0,0.00029588,2]
[381451750,1756215032732,-500.0,0.00029588,2]
[381451751,1756215032742,-500.0,0.00029588,2]
[381451752,1756215032751,-500.0,0.00029588,2]
[381451753,1756215032761,-397.48822979,0.00029588,2]
[381451754,1756215032771,-500.0,0.00029588,2]
[381451755,1756215032782,-500.0,0.00029588,2]
[381451756,1756215032792,-500.0,0.00029588,2]
[381451757,1756215032802,-500.0,0.00029588,2]
[381451760,1756215033010,-500.0,0.00029588,2]
[381451761,1756215033030,-500.0,0.00029588,2]
[381451762,1756215033040,-500.0,0.00029588,2]
[381451763,1756215033051,-500.0,0.00029588,2]
[381451764,1756215033061,-500.0,0.00029588,2]
[381451765,1756215033072,-500.0,0.00029588,2]
[381451766,1756215033082,-500.0,0.00029588,2]
[381451767,1756215033092,-500.0,0.00029588,2]
[381451768,1756215033102,-500.0,0.00029588,2]
[381451770,1756215033112,-500.0,0.00029588,2]
[381451771,1756215033122,-500.0,0.00029588,2]
[381451772,1756215033132,-500.0,0.00029588,2]
[381451773,1756215033143,-181.96556815,0.00029588,2]
[381451774,1756215033153,-500.0,0.00029588,2]
[381451775,1756215033162,-500.0,0.00029588,2]
[381451776,1756215033171,-500.0,0.00029588,2]
[381451777,1756215033180,-500.0,0.00029588,2]
[381451778,1756215033190,-500.0,0.00029588,2]
[381451779,1756215033200,-500.0,0.00029588,2]
[381451780,1756215033209,-500.0,0.00029588,2]
[381451781,1756215033219,-500.0,0.00029588,2]
[381451782,1756215033229,-500.0,0.00029588,2]
[381451783,1756215033239,-297.29096148,0.00029588,2]
[381451784,1756215033249,-386.89616,0.00029589,120]
[381451785,1756215033259,-247.45070696,0.00029777,5]
[381451786,1756215033269,-500.0,0.00029777,5]
[381451787,1756215033279,-500.0,0.00029777,5]
[381451788,1756215033288,-160.0,0.00029994,2]
[381451789,1756215033302,-205.99134872,0.00029999,2]
[381451790,1756215033311,-500.0,0.00029999,2]
[381451791,1756215033322,-500.0,0.00029999,2]
[381451792,1756215033335,-500.0,0.00029999,2]
[381451793,1756215033346,-500.0,0.00029999,2]
[381451794,1756215033356,-500.0,0.00029999,2]
[381451795,1756215033365,-500.0,0.00029999,2]
[381451796,1756215033375,-500.0,0.00029999,2]
[381451797,1756215033385,-568.55064122,0.00029999,2]
[381451798,1756215033394,-500.0,0.00029999,2]
[381451799,1756215033404,-500.0,0.00029999,2]
[381451800,1756215033415,-215.08789698,0.00029999,2]
[381451801,1756215033425,-500.0,0.00029999,2]
[381451802,1756215033435,-500.0,0.00029999,2]
[381451803,1756215033445,-500.0,0.00029999,2]
[381451804,1756215033455,-500.0,0.00029999,2]
[381451805,1756215033465,-500.0,0.00029999,2]
[381451806,1756215033475,-500.0,0.00029999,2]
[381451807,1756215033485,-198.92098351,0.00029999,2]
[381451808,1756215033495,-500.0,0.00029999,2]
[381451809,1756215033505,-500.0,0.00029999,2]
[381451810,1756215033514,-500.0,0.00029999,2]
[381451811,1756215033524,-500.0,0.00029999,2]
[381451812,1756215033533,-500.0,0.00029999,2]
[381451813,1756215033543,-500.0,0.00029999,2]
[381451814,1756215033553,-500.0,0.00029999,2]
[381451815,1756215033563,-500.0,0.00029999,2]
[381451816,1756215033573,-500.0,0.00029999,2]
[381451817,1756215033584,-468.36073207,0.00029999,2]
[381451818,1756215033595,-500.0,0.00029999,2]
[381451819,1756215033604,-500.0,0.00029999,2]
[381451820,1756215033615,-500.0,0.00029999,2]
[381451821,1756215033625,-500.0,0.00029999,2]
[381451822,1756215033637,-500.0,0.00029999,2]
[381451823,1756215033647,-500.0,0.00029999,2]
[381451824,1756215033658,-292.62726154,0.00029999,2]
[381451825,1756215033668,-1500.0,0.0003,2]
[381451826,1756215033678,-167.34289375,0.00030046,2]
[381451827,1756215033688,-301.93998937,0.00030137,120]
[381451828,1756215033698,-181.580695,0.00030146,2]
[381451829,1756215033710,-154.787,0.00030258,25]
[381451830,1756215033721,-808.21374348,0.00030259,13]
[381451831,1756215033731,-500.0,0.000303,5]
[381451832,1756215033741,-648.24957546,0.00030325,5]
[381451833,1756215033751,-1000.0,0.00030325,5]
[381451834,1756215033762,-325.04613702,0.00030547,2]
[381451835,1756215033773,-248.4872068,0.00030587,2]
[381451836,1756215033784,-666.0,0.00030614,2]
[381451837,1756215033795,-1500.0,0.00030873,5]
[381451838,1756215033807,-1028.7,0.0003098,10]
[381451839,1756215033817,-857.25,0.0003098,10]
[381451840,1756215033827,-714.37,0.0003098,10]
[381451841,1756215033837,-41177.96462573,0.0003099,2]
[381451842,1756215033847,-314.9114131,0.00031144,2]
[381451843,1756215033858,-1680.0,0.0003142,3]
[381451844,1756215033868,-2000.0,0.00031421,5]
[381451845,1756215033879,-250.0,0.00031433,2]
[381451846,1756215033889,-420.0,0.00031467,3]
[381451847,1756215033898,-3681.16,0.00031482,4]
[381451848,1756215033908,-168.0,0.00031705,120]
[381451849,1756215033918,-2000.0,0.000318,10]
[381451850,1756215033928,-2000.0,0.000318,20]
[381451851,1756215033938,-2000.0,0.000318,30]
[381451852,1756215033948,-2000.0,0.000318,50]
[381451853,1756215033961,-1511.56,0.00031849,3]
[381451854,1756215033970,-755.78,0.00031849,3]
[381451855,1756215033980,-377.89,0.00031849,3]
[381451856,1756215033989,-608.61103847,0.00031858,2]
[381451857,1756215033999,-834.19312794,0.00031858,2]
[381451858,1756215034008,-834.19312794,0.00031858,2]
[381451859,1756215034018,-834.19312794,0.00031858,2]
[381451860,1756215034027,-834.19312794,0.00031858,2]
[381451861,1756215034037,-834.19312794,0.00031858,2]
[381451862,1756215034047,-834.19312794,0.00031858,2]
[381451863,1756215034058,-834.19312794,0.00031858,2]
[381451864,1756215034067,-834.19312794,0.00031858,2]
[381451865,1756215034077,-834.19312794,0.00031858,2]
[381451866,1756215034087,-834.19312794,0.00031858,2]
[381451867,1756215034097,-834.19312794,0.00031858,2]
[381451868,1756215034107,-834.19312794,0.00031858,2]
[381451869,1756215034117,-834.19312794,0.00031858,2]
[381451870,1756215034126,-834.19312794,0.00031858,2]
[381451871,1756215034136,-834.19312794,0.00031858,2]
[381451872,1756215034146,-834.19312794,0.00031858,2]
[381451873,1756215034155,-834.19312794,0.00031858,2]
[381451874,1756215034165,-834.19312794,0.00031858,2]
[381451875,1756215034174,-834.19312794,0.00031858,2]
[381451876,1756215034184,-834.19312794,0.00031858,2]
[381451877,1756215034193,-1684.36008725,0.00031858,2]
[381451878,1756215034203,-232.53539143,0.00031859,30]
[381451879,1756215034212,-216.09257821,0.00031859,30]
[381451880,1756215034221,-160.0,0.00031859,30]
[381451881,1756215034232,-150.0,0.00031859,10]
[381451882,1756215034241,-180025.22938612,0.00031859,20]
[381451883,1756215034255,-471.98987529,0.00031859,20]
[381451884,1756215037758,528.31005267,0.0002822,7]
[381451885,1756215037953,-199.0,0.00029489,120]
[381451886,1756215037963,-500.0,0.00029588,2]
[381451887,1756215037973,-500.0,0.00029862,2]
[381451888,1756215037983,-500.0,0.00030136,2]
[381451889,1756215037992,-889.80600313,0.00031481,2]
[381451890,1756215038002,-889.80600313,0.00031481,2]
[381451891,1756215038011,-889.80600313,0.00031481,2]
[381451892,1756215038020,-889.80600313,0.00031481,2]
[381451893,1756215038029,-889.80600313,0.00031481,2]
[381451894,1756215038039,-889.80600313,0.00031481,2]
[381451895,1756215038049,-7937.95084996,0.00031759,2]
[381451896,1756215038059,-7937.95084995,0.0003183,2]
[381451897,1756215038068,-1773.92555963,0.00031858,2]
[381451898,1756215038078,-1069454.39844925,0.00031859,20]
[381451899,1756215038087,-5980.15968823,0.00031859,7]
[381451900,1756215038097,-14999.99999901,0.00031859,2]
[381451902,1756215038106,-858.77630464,0.00031859,30]
[381451903,1756215038116,-49857.30073436,0.00031859,2]
[381451904,1756215038127,-1189.90614119,0.00031859,2]
[381451905,1756215038136,-882.10293333,0.00031859,30]
[381451906,1756215038147,-579.06340537,0.00031859,5]
[381451907,1756215038156,-6409.8759588,0.00031859,30]
[381451908,1756215038166,-144035.53819403,0.00031859,2]
[381451909,1756215038175,-258.20860713,0.00031859,2]
[381451910,1756215038185,-160.0,0.0003188,2]
[381451911,1756215038194,-449.0,0.00031902,3]
[381451912,1756215038203,-160.0,0.00031926,2]
[381451913,1756215038213,-12704.43797926,0.00031968,2]
[381451914,1756215038222,-2500.0,0.00031969,5]
[381451915,1756215038232,-500.0,0.00031973,5]
[381451916,1756215038242,-500.0,0.00031973,5]
[381451917,1756215038251,-500.0,0.00031973,5]
[381451918,1756215038261,-529.59348212,0.00031973,5]
[381451919,1756215038270,-498.43472966,0.00031973,5]
[381451920,1756215038280,-500.0,0.00031973,5]
[381451921,1756215038289,-500.0,0.00031973,5]
[381451922,1756215038299,-500.0,0.00031973,5]
[381451923,1756215038308,-500.0,0.00031973,5]
[381451924,1756215038318,-500.0,0.00031973,5]
[381451925,1756215038330,-500.0,0.00031973,5]
[381451926,1756215038341,-500.0,0.00031973,5]
[381451927,1756215038351,-500.0,0.00031973,5]
[381451928,1756215038359,-500.0,0.00031973,5]
[381451929,1756215038370,-500.0,0.00031973,5]
[381451930,1756215038379,-500.0,0.00031973,5]
[381451931,1756215038389,-500.0,0.00031973,5]
[381451932,1756215038400,-1250.70083191,0.00031974,2]
[381451933,1756215038409,-60240.9081013,0.0003198,2]
[381451934,1756215038420,-808.21374348,0.00031986,17]
[381451935,1756215038429,-188.95,0.0003199,3]
[381451936,1756215038439,-182.22,0.0003199,3]
[381451937,1756215038448,-546.69,0.0003199,3]
[381451938,1756215038458,-233.54,0.0003199,3]
[381451939,1756215038467,-700.64,0.0003199,3]
[381451940,1756215038477,-845.07960918,0.00031992,2]
[381451941,1756215038486,-217.18350301,0.00031992,2]
[381451942,1756215038690,-160.0,0.00031992,2]
[381451943,1756215038716,-160.0,0.00031992,2]
[381451944,1756215038727,-160.0,0.00031992,2]
[381451945,1756215038737,-160.0,0.00031992,2]
[381451946,1756215038746,-216.09257821,0.00031992,2]
[381451947,1756215038758,-232.53539143,0.00031992,2]
[381451948,1756215038768,-529.4218694,0.00031992,2]
[381451949,1756215038778,-376.39720582,0.00031992,2]
[381451950,1756215038787,-163.0,0.00031997,120]
[381451951,1756215038797,-448797.55092343,0.00032,60]
[381451952,1756215038808,-186.555939,0.00032,7]
[381451953,1756215038818,-186.555939,0.00032,7]
[381451954,1756215038828,-186.555939,0.00032,7]
[381451955,1756215038837,-151.594813,0.00032,7]
[381451956,1756215038847,-186.555939,0.00032,7]
[381451957,1756215038857,-151.0,0.00032,7]
[381451958,1756215038867,-151.611321,0.00032,7]
[381451959,1756215038877,-1276.038129,0.00032,7]
[381451960,1756215038886,-1276.038129,0.00032,7]
[381451961,1756215038895,-1276.038129,0.00032,7]
[381451962,1756215038905,-1276.038129,0.00032,7]
[381451963,1756215038915,-151.0,0.00032,7]
[381451964,1756215038925,-10967.62008935,0.00032013,2]
[381451965,1756215038934,-177.0,0.0003204,120]
[381451966,1756215038943,-18880.14561576,0.00032053,2]
[381451967,1756215038956,-41360.76248554,0.00032053,2]
[381451968,1756215038965,-120481.816203,0.00032054,2]
[381451969,1756215038975,-200.83684016,0.00032054,2]
[381451970,1756215038984,-2585.58,0.00032054,3]
[381451971,1756215038994,-1292.79,0.00032054,3]
[381451972,1756215039004,-646.4,0.00032054,3]
[381451973,1756215039014,-323.2,0.00032054,3]
[381451974,1756215039023,-161.6,0.00032054,3]
[381451975,1756215039032,-484.8,0.00032054,3]
[381451976,1756215039041,-232.53539143,0.00032054,3]
[381451977,1756215039052,-160.0,0.00032054,3]
[381451978,1756215039061,-160.0,0.00032054,3]
[381451979,1756215039070,-216.09257821,0.00032054,3]
[381451980,1756215039080,-160.0,0.00032054,3]
[381451981,1756215039089,-160.0,0.00032055,2]
[381451982,1756215039100,-1815.74042829,0.0003206,2]
[381451983,1756215039110,-120481.816203,0.00032064,2]
[381451984,1756215039119,-200.83684016,0.00032064,2]
[381451985,1756215039129,-500.0,0.00032073,5]
[381451986,1756215039138,-500.0,0.00032073,5]
[381451987,1756215039148,-500.0,0.00032073,5]
[381451988,1756215039157,-500.0,0.00032073,2]
[381451989,1756215039167,-500.0,0.00032073,5]
[381451990,1756215039176,-500.0,0.00032073,5]
[381451991,1756215039186,-500.0,0.00032073,5]
[381451992,1756215039195,-500.0,0.00032073,5]
[381451993,1756215039205,-500.0,0.00032073,5]
[381451994,1756215039214,-500.0,0.00032073,5]
[381451995,1756215039223,-500.0,0.00032073,5]
[381451996,1756215039232,-500.0,0.00032073,5]
[381451997,1756215039242,-500.0,0.00032073,5]
[381451998,1756215039251,-500.0,0.00032073,5]
[381451999,1756215039261,-227.184328,0.00032073,7]
[381452000,1756215039271,-227.184328,0.00032073,7]
[381452001,1756215039280,-151.0,0.00032073,7]
[381452002,1756215039290,-151.0,0.00032073,7]
[381452003,1756215039299,-227.184328,0.00032073,7]
[381452004,1756215039313,-227.184328,0.00032073,7]
[381452005,1756215039323,-1710.973225,0.00032074,2]
[381452006,1756215039336,-10570.5321611,0.00032074,2]
[381452007,1756215039345,-21445.18035216,0.00032074,2]
[381452008,1756215039362,-65380.90505054,0.00032074,2]
[381452009,1756215039371,-3024.879892,0.00032074,2]
[381452010,1756215039381,-1229.97189104,0.00032074,2]
[381452017,1756215040105,-889.80600313,0.00031481,2]
[381452018,1756215040115,-1851.89980726,0.00032074,2]
[381452019,1756215040125,-194.9300513,0.00032074,2]
[381452020,1756215040134,-186.555939,0.00032074,7]
[381452021,1756215040144,-186.555939,0.00032074,7]
[381452022,1756215040153,-186.555939,0.00032074,7]
[381452023,1756215040162,-186.555939,0.00032074,7]
[381452024,1756215040171,-151.0,0.00032074,7]
[381452025,1756215040181,-1276.038129,0.00032074,7]
[381452026,1756215040190,-1276.038129,0.00032074,7]
[381452027,1756215040198,-120.35868792,0.00032074,7]
[381452035,1756215041820,-1155.67944108,0.00032074,7]
[381452036,1756215041830,-1276.038129,0.00032074,7]
[381452037,1756215041839,-151.0,0.00032074,7]
[381452038,1756215041849,-181.87502351,0.000321,112]
[381452039,1756215041858,-502.0921004,0.00032103,2]
[381452040,1756215041868,-702.92894056,0.00032114,2]
[381452041,1756215041877,-13961.16317841,0.00032124,2]
[381452046,1756215043227,-6626.06035467,0.000319,2]
[381452053,1756215046305,-658.21204395,0.000319,2]
[381452059,1756215085424,626.05991763,0.000199,2]
[381452060,1756215085591,626.05991742,0.00021627,2]
[381452061,1756215085727,626.05991742,0.00023353,2]
[381452062,1756215085963,626.05991742,0.0002508,2]
[381452063,1756215086020,626.05991742,0.00026806,6]
[381452064,1756215104310,320.0,0.0002822,7]
[381452065,1756215105280,800.0,0.0002822,7]
[381452070,1756215258959,569.43288551,0.000199,2]
[381452071,1756215259112,569.43288551,0.00021627,2]
[381452072,1756215259234,569.43288551,0.00023353,2]
[381452073,1756215259555,569.43288551,0.0002508,2]
[381452074,1756215259635,569.43288551,0.00026806,6]
[381452078,1756215320820,7834.57399114,0.00028,7]
[381452079,1756215320848,22165.42600886,0.00028,7]
[381452082,1756215395543,-152.95697777,0.0002822,2]
[381452083,1756215406122,-224.83516575,0.0002822,2]
[381452084,1756215411147,-242.10086165,0.0002822,2]
[381452085,1756215419004,160.0,0.000282,7]
[381452086,1756215431453,-434.89494459,0.0002822,2]
[381452087,1756215434646,-575.52314793,0.0002822,2]
[381452088,1756215437950,581.52677685,0.000199,2]
[381452089,1756215438643,581.52677677,0.00021627,2]
[381452090,1756215438711,581.52677677,0.00023353,2]
[381452091,1756215438771,581.52677677,0.0002508,2]
[381452092,1756215438837,581.52677677,0.00026806,6]
[381452093,1756215439179,-142.68890231,0.0002822,2]
[381452094,1756215449274,30000.0,0.000282,7]
[381452095,1756215462035,30000.0,0.000282,7]
[381452096,1756215470953,16485.1554816,0.000282,7]
[381452100,1756215619554,630.21904284,0.000199,2]
[381452101,1756215619690,630.21904264,0.00021627,2]
[381452102,1756215619820,630.21904264,0.00023353,2]
[381452103,1756215620154,630.21904264,0.0002508,2]
[381452104,1756215620348,630.21904264,0.00026806,6]
[381452105,1756215626978,216.09257821,0.00025,10]
[381452106,1756215670854,529.05847148,0.000282,7]
[381452107,1756215734751,5000.0,0.000282,2]
[381452108,1756215739977,529.4218694,0.00028,10]
[381452109,1756215751015,5000.0,0.000282,2]
[381452110,1756215767712,5000.0,0.000282,2]
[381452111,1756215780240,459.07383761,0.00025205,2]
[381452112,1756215784982,412.58776214,0.000282,2]
[381452113,1756215809025,600.93184026,0.000199,2]
[381452114,1756215809146,600.93184022,0.00021627,2]
[381452115,1756215809259,600.93184022,0.00023353,2]
[381452116,1756215809377,600.93184022,0.0002508,2]
[381452117,1756215809485,600.93184022,0.00026806,6]
[381452118,1756215858105,164.570211,0.00013699,2]
[381452119,1756215920961,206572.673785,0.00027794,2]
[381452120,1756215935568,216.09257821,0.00025,10]
[381452121,1756215959959,163.045343,0.00025778,2]
[381452122,1756215966589,1660.67722194,0.00027319,2]
[381452123,1756215967965,215.82329729,0.00027319,2]
[381452124,1756215986320,535.91038208,0.000199,2]
[381452125,1756215986431,535.91038182,0.00021627,2]
[381452126,1756215986535,535.91038182,0.00023353,2]
[381452127,1756215986696,535.91038182,0.0002508,2]
[381452128,1756215987099,535.91038182,0.00026806,6]
[381452129,1756216007872,3313.42790657,0.00027627,2]
[381452133,1756216112762,313.13048,0.00028,2]
[381452134,1756216203139,153.67403753,0.00027,2]
[381452135,1756216203849,553.90572252,0.000199,2]
[381452136,1756216203928,553.90572223,0.00021627,2]
[381452137,1756216203994,553.90572223,0.00023353,2]
[381452138,1756216204148,553.90572223,0.0002508,2]
[381452139,1756216204308,553.90572223,0.00026806,6]
[381452140,1756216215104,199.040283,0.00027819,2]
[381452205,1756216232442,-174.545246,0.00028448,2]
[381452207,1756216232451,-160.0,0.00028498,2]
[381452209,1756216232461,-553.90572223,0.00028533,10]
[381452211,1756216232471,-541.27082302,0.00028928,2]
[381452213,1756216232481,-1200.0,0.00028991,2]
[381452215,1756216232491,-300.0,0.00028992,2]
[381452217,1756216232500,-300.0,0.00028992,2]
[381452219,1756216232510,-300.0,0.00028992,2]
[381452221,1756216232519,-300.0,0.00028992,2]
[381452223,1756216232528,-300.0,0.00028992,2]
[381452225,1756216232538,-329.81785912,0.00028993,2]
[381452227,1756216232547,-199.69899572,0.00028993,2]
[381452229,1756216232557,-299.88010928,0.00028993,2]
[381452230,1756216232566,-588.06969573,0.00028993,2]
[381452232,1756216232577,-171.72077954,0.00028993,2]
[381452234,1756216232587,-500.0,0.00028993,2]
[381452236,1756216232597,-229.83896014,0.00028993,2]
[381452237,1756216232607,-631.32950757,0.00028993,2]
[381452239,1756216232616,-208.25624749,0.00028993,2]
[381452240,1756216232626,-500.0,0.00028993,2]
[381452241,1756216232635,-500.0,0.00028993,2]
[381452242,1756216232648,-389.74882298,0.00028993,2]
[381452243,1756216232657,-339.07874172,0.00028993,2]
[381452244,1756216232667,-500.0,0.00028993,2]
[381452245,1756216232676,-493.95315399,0.00028993,2]
[381452246,1756216232686,-416.38546668,0.00028993,2]
[381452247,1756216232696,-500.0,0.00028993,2]
[381452248,1756216232716,-20.29182576,0.00028993,2]
[381452249,1756216233753,1112.0,0.00031853,120]
[381452300,1756216238467,-168.67054806,0.00028928,2]
[381452302,1756216238478,-674.00751005,0.00028928,2]
[381452304,1756216238488,-1179.70817424,0.00028993,2]
[381452306,1756216238498,-283.04,0.00028996,21]
[381452308,1756216238508,-845.07960918,0.00029,10]
[381452310,1756216238518,-845.07960918,0.00029,10]
[381452312,1756216238528,-232.53539143,0.00029,10]
[381452314,1756216238538,-232.53539143,0.00029,10]